{"text_format":"1","workbook":"xlsx","n_sheets":10,"sheets":["Data Set","ISBLANK","IF Function","IF & ISBLANK","Find Tool","Conditional Formatiing","COUNTBLANK","COUNTIF","SUMPRODUCT","VBA"],"not_rendered":{"charts":0,"images":0,"macros":1,"external_links":0,"defined_names":0,"comments":0,"pivot_tables":0},"unopened":[],"bounds":{"document_bytes":16777216,"sheet_cells":100000,"rows_first":2000,"rows_last":500,"rows_between":2000,"halvings":0,"cell_chars":16384,"cell_head_chars":4096},"cells_cut":0,"cells_raw":0,"read":"whole","date_system":"1900"}

{"sheet":"Data Set","index":0,"n_rows":10,"n_cols":2,"rows_kept":10,"cut":false,"hidden":false,"merged":[]}
[]
[null,"Excel Check if Cell is Empty"]
[]
[null,"Name"]
[null,"Jose"]
[null,"David"]
[]
[null,"Zavi"]
[null,"Alina"]
[null,"Clark"]

{"sheet":"ISBLANK","index":1,"n_rows":10,"n_cols":3,"rows_kept":10,"cut":false,"hidden":false,"merged":[[1,1,1,2]]}
[]
[null,"ISBLANK Function"]
[]
[null,"Name","Result"]
[null,"Jose",{"$f":"ISBLANK(B5)","v":false}]
[null,"David",{"$f":"ISBLANK(B6)","v":false}]
[null,null,true]
[null,"Zavi",false]
[null,"Alina",false]
[null,"Clark",false]

{"sheet":"IF Function","index":2,"n_rows":10,"n_cols":3,"rows_kept":10,"cut":false,"hidden":false,"merged":[[1,1,1,2]]}
[]
[null,"Use of IF Function"]
[]
[null,"Name","Result"]
[null,"Jose",{"$f":"IF(B5=\"\",\"Blank\",\"Not Blank\")","v":"Not Blank"}]
[null,"David",{"$f":"IF(B6=\"\",\"Blank\",\"Not Blank\")","v":"Not Blank"}]
[null,null,"Blank"]
[null,"Zavi","Not Blank"]
[null,"Alina","Not Blank"]
[null,"Clark","Not Blank"]

{"sheet":"IF & ISBLANK","index":3,"n_rows":10,"n_cols":3,"rows_kept":10,"cut":false,"hidden":false,"merged":[[1,1,1,2]]}
[]
[null,"Combination of IF and ISBLANK "]
[]
[null,"Name","Result"]
[null,"Jose",{"$f":"IF(ISBLANK(B5),\"Blank\",\"Not Blank\")","v":"Not Blank"}]
[null,"David",{"$f":"IF(ISBLANK(B6),\"Blank\",\"Not Blank\")","v":"Not Blank"}]
[null,null,"Blank"]
[null,"Zavi","Not Blank"]
[null,"Alina","Not Blank"]
[null,"Clark","Not Blank"]

{"sheet":"Find Tool","index":4,"n_rows":10,"n_cols":2,"rows_kept":10,"cut":false,"hidden":false,"merged":[]}
[]
[null,"Find Tool"]
[]
[null,"Name"]
[null,"Jose"]
[null,"David"]
[]
[null,"Zavi"]
[]
[null,"Clark"]

{"sheet":"Conditional Formatiing","index":5,"n_rows":10,"n_cols":2,"rows_kept":10,"cut":false,"hidden":false,"merged":[]}
[]
[null,"Conditional Formatting"]
[]
[null,"Name"]
[null,"Jose"]
[null,"David"]
[]
[null,"Zavi"]
[]
[null,"Clark"]

{"sheet":"COUNTBLANK","index":6,"n_rows":10,"n_cols":3,"rows_kept":10,"cut":false,"hidden":false,"merged":[[1,1,1,2]]}
[]
[null,"COUNTIBLANK Function"]
[]
[null,"Name","Result"]
[null,"Jose",{"$f":"COUNTBLANK(B5:B10)","v":1}]
[null,"David"]
[]
[null,"Zavi"]
[null,"Alina"]
[null,"Clark"]

{"sheet":"COUNTIF","index":7,"n_rows":10,"n_cols":3,"rows_kept":10,"cut":false,"hidden":false,"merged":[[1,1,1,2]]}
[]
[null,"COUNTIIF Function"]
[]
[null,"Name","Result"]
[null,"Jose",{"$f":"COUNTIF(B5:B10,\"\")","v":1}]
[null,"David"]
[]
[null,"Zavi"]
[null,"Alina"]
[null,"Clark"]

{"sheet":"SUMPRODUCT","index":8,"n_rows":10,"n_cols":3,"rows_kept":10,"cut":false,"hidden":false,"merged":[[1,1,1,2]]}
[]
[null,"Use of SUMPRODUCT  Function"]
[]
[null,"Name","Result"]
[null,"Jose",{"$f":"SUMPRODUCT(--(B5:B10=\"\"))>0","v":true}]
[null,"David"]
[]
[null,"Zavi"]
[null,"Alina"]
[null,"Clark"]

{"sheet":"VBA","index":9,"n_rows":10,"n_cols":2,"rows_kept":10,"cut":false,"hidden":false,"merged":[]}
[]
[null,"VBA & Macros"]
[]
[null,"Name"]
[null,"Jose"]
[null,"David"]
[]
[null,"Zavi"]
[]
[null,"Clark"]